fUSD/lending_fUSD_20260329
["ID","MTS","AMOUNT","RATE_DAILY","PERIOD"]
[419042913,1774803057305,-300.0,0.00017864,2]
[419042914,1774803057315,-300.0,0.00017864,2]
[419042915,1774803057325,-300.0,0.00017864,2]
[419042916,1774803057335,-300.0,0.00017864,2]
[419042917,1774803057344,-300.0,0.00017864,2]
[419042918,1774803057354,-300.0,0.00017864,2]
[419042919,1774803057364,-158.87707591,0.00017864,2]
[419042920,1774803057373,-255708.2380576,0.00017865,2]
[419042921,1774803057383,-163220.7874302,0.00017865,2]
[419042922,1774803057393,-489490.4933208,0.00017865,2]
[419042923,1774803057403,-911.179565,0.00017865,2]
[419042924,1774803057413,-911.179565,0.00017865,2]
[419042925,1774803057422,-911.179565,0.00017865,2]
[419042926,1774803057432,-911.179565,0.00017865,2]
[419042927,1774803057443,-166.899042,0.00017865,2]
[419042928,1774803057456,-166.899042,0.00017865,2]
[419042929,1774803057472,-166.899042,0.00017865,2]
[419042930,1774803057487,-166.899042,0.00017865,2]
[419042931,1774803057500,-151.0,0.00017865,2]
[419042932,1774803057514,-151.0,0.00017865,2]
[419042933,1774803057528,-151.0,0.00017865,2]
[419042934,1774803057544,-151.0,0.00017865,2]
[419042935,1774803057559,-377.541543,0.00017865,2]
[419042936,1774803057574,-377.541543,0.00017865,2]
[419042937,1774803057588,-377.541543,0.00017865,2]
[419042938,1774803057603,-377.541543,0.00017865,2]
[419042939,1774803057617,-151.0,0.00017865,2]
[419042940,1774803057630,-151.0,0.00017865,2]
[419042941,1774803057643,-151.0,0.00017865,2]
[419042942,1774803057656,-294.560932,0.00017865,2]
[419042943,1774803057669,-1189.605376,0.00017865,2]
[419042944,1774803057684,-1189.605376,0.00017865,2]
[419042945,1774803057699,-1189.605376,0.00017865,2]
[419042946,1774803057714,-1189.605376,0.00017865,2]
[419042947,1774803057729,-151.0,0.00017865,2]
[419042948,1774803057745,-151.0,0.00017865,2]
[419042949,1774803057757,-1576.862549,0.00017865,2]
[419042950,1774803057768,-1576.862549,0.00017865,2]
[419042951,1774803057779,-1576.862549,0.00017865,2]
[419042952,1774803057795,-1576.862549,0.00017865,2]
[419042953,1774803057806,-1103.921714,0.00017865,2]
[419042954,1774803057820,-1231.49416133,0.0001789,2]
[419042955,1774803057835,-1079.12796334,0.0001789,2]
[419042956,1774803057847,-1106.84103678,0.0001789,2]
[419042957,1774803057862,-700.0,0.000179,6]
[419042958,1774803057873,-168.19,0.00017919,2]
[419042959,1774803057884,-1115.0,0.00017967,2]
[419042960,1774803057895,-217.15233878,0.00017972,2]
[419042961,1774803057907,-151.0,0.00017972,2]
[419042962,1774803057919,-260.4103811,0.00017972,2]
[419042963,1774803057931,-1776.30922209,0.00017972,2]
[419042964,1774803057943,-1570.0,0.00017983,2]
[419042965,1774803057954,-20000.0,0.0001799,2]
[419042966,1774803057967,-110220.26513239,0.00018,2]
[419042967,1774803057981,-1200.22193869,0.00018,2]
[419042968,1774803057995,-309.43052806,0.00018,2]
[419042969,1774803058008,-20289.73,0.00018,2]
[419042970,1774803058020,-200.0,0.00018,2]
[419042971,1774803058032,-160.0,0.00018,7]
[419042972,1774803058045,-160.0,0.00018,7]
[419042973,1774803058066,-214.53634884,0.0001802,2]
[419042974,1774803058079,-168.18,0.00018035,2]
[419042975,1774803058091,-2224.1,0.00018082,2]
[419042976,1774803058104,-1791.36187497,0.000181,2]
[419042977,1774803058116,-257.40227596,0.00018164,2]
[419042978,1774803058129,-2500.0,0.00018164,2]
[419042979,1774803058142,-1004.43813318,0.00018164,2]
[419042980,1774803058154,-545.0,0.00018273,3]
[419042981,1774803058167,-298.5,0.000183,9]
[419042982,1774803058179,-4678.52,0.000183,2]
[419042983,1774803058192,-4789.28,0.000183,2]
[419042984,1774803058204,-4373.32,0.000183,2]
[419042985,1774803058217,-207.93665568,0.00018309,2]
[419042986,1774803058229,-359.35513189,0.00018352,2]
[419042987,1774803058242,-2224.1,0.00018356,2]
[419042988,1774803058255,-89124.88,0.00018356,2]
[419042989,1774803058267,-150.0,0.00018409,30]
[419042990,1774803058280,-420.26,0.00018452,2]
[419042991,1774803058293,-386.575894,0.00018479,7]
[419042992,1774803058305,-584.3058,0.000185,2]
[419042993,1774803058318,-225.18697532,0.0001852,2]
[419042994,1774803058330,-151.0,0.0001852,2]
[419042995,1774803058343,-270.0455652,0.0001852,2]
[419042996,1774803058356,-1842.03266331,0.0001852,2]
[419042997,1774803058369,-2224.1,0.0001863,2]
[419042998,1774803058383,-2258.0,0.00018709,2]
[419042999,1774803058395,-3000.0,0.00018712,2]
[419043000,1774803058408,-3000.0,0.0001874,7]
[419043001,1774803058421,-9035.0,0.00018777,2]
[419043002,1774803058434,-300.0,0.000189,6]
[419043003,1774803058447,-2224.1,0.00018904,2]
[419043004,1774803058461,-1600.0,0.00018904,2]
[419043005,1774803058473,-545.0,0.00018909,3]
[419043006,1774803058486,-1115.0,0.00018912,2]
[419043007,1774803058498,-4190.0,0.00019,2]
[419043008,1774803058511,-5205.00487769,0.00019,2]
[419043009,1774803058523,-1738.74319617,0.00019,2]
[419043010,1774803058535,-3044.8200265,0.00019,2]
[419043011,1774803058547,-400.0,0.00019,2]
[419043012,1774803058560,-127032.18998515,0.00019,2]
[419043013,1774803058573,-1185.2053952,0.00019,2]
[419043014,1774803058586,-361.51740542,0.0001901,7]
[419043015,1774803058599,-233.51889341,0.00019068,2]
[419043016,1774803058611,-151.0,0.00019068,2]
[419043017,1774803058624,-280.03725112,0.00019068,2]
[419043018,1774803058636,-1910.18787185,0.00019068,2]
[419043019,1774803058648,-29762.81,0.00019086,2]
[419043020,1774803058661,-9581.23,0.00019086,2]
[419043021,1774803058673,-2965.74,0.00019086,2]
[419043022,1774803058686,-1762.3,0.00019086,2]
[419043023,1774803058698,-1523.91,0.000191,2]
[419043024,1774803058710,-3286.49,0.000191,2]
[419043025,1774803058723,-2000.0,0.000191,2]
[419043026,1774803058735,-200.0,0.00019178,2]
[419043027,1774803058748,-2224.1,0.00019178,2]
[419043028,1774803058760,-150.0,0.00019178,2]
[419043029,1774803058772,-150.0,0.00019178,2]
[419043030,1774803058784,-150.0,0.00019178,2]
[419043031,1774803058795,-168.12298518,0.00019178,2]
[419043032,1774803058807,-3000.0,0.00019178,2]
[419043033,1774803058819,-20293.75,0.00019178,2]
[419043034,1774803058831,-151.0,0.00019178,2]
[419043035,1774803058843,-151.0,0.00019178,2]
[419043036,1774803058856,-151.0,0.00019178,2]
[419043037,1774803058869,-151.0,0.00019178,2]
[419043038,1774803058880,-151.0,0.00019178,2]
[419043039,1774803058893,-151.0,0.00019178,2]
[419043040,1774803058904,-151.0,0.00019178,2]
[419043041,1774803058917,-151.0,0.00019178,2]
[419043042,1774803058928,-151.0,0.00019178,2]
[419043043,1774803058941,-151.0,0.00019178,2]
[419043044,1774803058953,-151.0,0.00019178,2]
[419043045,1774803058965,-188.899471,0.00019178,2]
[419043046,1774803058977,-160.768787,0.00019178,3]
[419043047,1774803058989,-151.0,0.00019178,2]
[419043048,1774803059001,-151.0,0.00019178,2]
[419043049,1774803059013,-151.0,0.00019178,2]
[419043050,1774803059024,-151.0,0.00019178,2]
[419043051,1774803059037,-151.0,0.00019178,2]
[419043052,1774803059048,-151.0,0.00019178,2]
[419043053,1774803059060,-151.0,0.00019178,2]
[419043054,1774803059073,-151.0,0.00019178,2]
[419043055,1774803059085,-158.698178,0.00019178,2]
[419043056,1774803059097,-182.871189,0.00019178,2]
[419043057,1774803059109,-182.871189,0.00019178,2]
[419043058,1774803059121,-182.871189,0.00019178,2]
[419043059,1774803059133,-182.871189,0.00019178,2]
[419043060,1774803059145,-2345.37,0.00019178,2]
[419043061,1774803059161,-5864.77589,0.00019178,2]
[419043062,1774803059173,-5864.77589,0.00019178,2]
[419043063,1774803059185,-5864.77589,0.00019178,2]
[419043064,1774803059196,-5864.77589,0.00019178,2]
[419043065,1774803059208,-5864.77589,0.00019178,2]
[419043066,1774803059220,-5864.77589,0.00019178,2]
[419043067,1774803059232,-5864.77589,0.00019178,2]
[419043068,1774803059243,-5864.77589,0.00019178,2]
[419043069,1774803059255,-150.0,0.00019178,2]
[419043070,1774803059266,-150.0,0.00019178,2]
[419043071,1774803059278,-330.0,0.00019192,2]
[419043072,1774803059289,-330.0,0.00019192,2]
[419043073,1774803059300,-2000.0,0.000192,2]
[419043074,1774803059311,-896.86268688,0.00019258,2]
[419043075,1774803059322,-1644.43337785,0.0001926,2]
[419043076,1774803059334,-2000.0,0.000193,2]
[419043077,1774803059345,-826.327548,0.00019307,7]
[419043078,1774803059356,-3620.0,0.00019337,2]
[419043079,1774803059367,-20289.73,0.000194,2]
[419043080,1774803059378,-2000.0,0.000194,2]
[419043081,1774803059388,-230.28037257,0.00019402,24]
[419043082,1774803059399,-2224.1,0.00019452,2]
[419043083,1774803059410,-473.622797,0.00019465,7]
[419043084,1774803059421,-252.282515,0.00019465,7]
[419043085,1774803059433,-6390.42,0.00019476,2]
[419043086,1774803059445,-150.0,0.00019498,30]
[419043087,1774803059456,-2000.0,0.000195,2]
[419043088,1774803059468,-545.0,0.00019545,4]
[419043089,1774803059479,-2800.0,0.00019562,7]
[419043090,1774803059491,-2000.0,0.000196,2]
[419043091,1774803059503,-242.15909246,0.00019616,2]
[419043092,1774803059516,-151.0,0.00019616,2]
[419043093,1774803059528,-290.39862941,0.00019616,2]
[419043094,1774803059539,-1980.86482311,0.00019616,2]
[419043095,1774803059549,-500.0,0.00019636,2]
[419043096,1774803059560,-233.73,0.00019658,2]
[419043097,1774803059571,-4051.5663196,0.00019675,2]
[419043098,1774803059582,-3038.6747397,0.00019675,2]
[419043099,1774803059593,-7691.6454347,0.00019675,2]
[419043100,1774803059603,-151.0,0.00019685,2]
[419043101,1774803059615,-151.0,0.00019685,2]
[419043102,1774803059627,-151.0,0.00019685,2]
[419043103,1774803059637,-4678.52,0.000197,7]
[419043104,1774803059648,-4789.28,0.000197,2]
[419043105,1774803059658,-4373.32,0.000197,2]
[419043106,1774803059669,-2000.0,0.000197,2]
[419043107,1774803059679,-166.488897,0.00019722,2]
[419043108,1774803059690,-200.0,0.00019726,2]
[419043109,1774803059701,-250.0,0.00019726,2]
[419043110,1774803059712,-150.0,0.00019726,2]
[419043111,1774803059723,-193.723397,0.00019729,2]
[419043112,1774803059735,-193.723397,0.00019729,2]
[419043113,1774803059746,-193.723397,0.00019729,2]
[419043114,1774803059759,-193.723397,0.00019729,2]
[419043115,1774803059770,-151.0,0.00019729,2]
[419043116,1774803059780,-151.0,0.00019729,2]
[419043117,1774803059791,-151.0,0.00019729,2]
[419043118,1774803059803,-151.0,0.00019729,2]
[419043119,1774803059814,-151.0,0.00019729,2]
[419043120,1774803059824,-151.0,0.00019729,2]
[419043121,1774803059835,-151.0,0.00019729,2]
[419043122,1774803059846,-151.0,0.00019729,2]
[419043123,1774803059856,-150.0,0.0001973,2]
[419043124,1774803059868,-150.0,0.0001973,2]
[419043125,1774803059880,-150.0,0.0001973,2]
[419043126,1774803059893,-150.0,0.0001973,2]
[419043127,1774803059905,-150.0,0.0001973,2]
[419043128,1774803059917,-150.0,0.0001973,2]
[419043129,1774803059929,-150.0,0.0001973,2]
[419043130,1774803059939,-150.0,0.0001973,2]
[419043131,1774803059951,-150.0,0.0001973,2]
[419043132,1774803059962,-150.0,0.0001973,2]
[419043133,1774803059975,-150.0,0.0001973,2]
[419043134,1774803059986,-150.0,0.0001973,2]
[419043135,1774803060000,-150.0,0.0001973,2]
[419043136,1774803060012,-150.0,0.0001973,2]
[419043137,1774803060023,-150.0,0.0001973,2]
[419043138,1774803060036,-250.85256854,0.0001973,2]
[419043139,1774803060047,-255708.2380576,0.00019731,2]
[419043140,1774803060059,-163220.7874302,0.00019731,2]
[419043141,1774803060072,-489490.4933208,0.00019731,2]
[419043142,1774803060085,-766.9199,0.000198,2]
[419043143,1774803060096,-2000.0,0.000198,2]
[419043144,1774803060109,-3000.0,0.00019836,7]
[419043145,1774803060122,-2913.0,0.00019898,5]
[419043146,1774803060133,-70213.80831906,0.000199,2]
[419043147,1774803060144,-2000.0,0.000199,2]
[419043148,1774803060157,-1115.0,0.00019908,2]
[419043149,1774803060168,-192748.70015569,0.0001995,15]
[419043150,1774803060181,-120131.47567567,0.0001998,2]
[419043151,1774803060192,-151.0,0.0001998,2]
[419043152,1774803060204,-151.0,0.0001998,2]
[419043153,1774803060215,-151.0,0.0001998,2]
[419043154,1774803060226,-377.541543,0.0001998,2]
[419043155,1774803060238,-377.541543,0.0001998,2]
[419043156,1774803060250,-377.541543,0.0001998,2]
[419043157,1774803060262,-377.541543,0.0001998,2]
[419043158,1774803060273,-151.0,0.0001998,2]
[419043159,1774803060284,-151.0,0.0001998,2]
[419043160,1774803060296,-151.0,0.0001998,2]
[419043161,1774803060307,-1189.605376,0.0001998,2]
[419043162,1774803060318,-1189.605376,0.0001998,2]
[419043163,1774803060328,-1189.605376,0.0001998,2]
[419043164,1774803060340,-1189.605376,0.0001998,2]
[419043165,1774803060351,-151.0,0.0001998,2]
[419043166,1774803060361,-214.766298,0.0001998,2]
[419043167,1774803060373,-1576.862549,0.0001998,2]
[419043168,1774803060384,-1576.862549,0.0001998,2]
[419043169,1774803060395,-1576.862549,0.0001998,2]
[419043170,1774803060406,-1576.862549,0.0001998,2]
[419043171,1774803060417,-1103.921714,0.0001998,2]
[419043172,1774803060428,-3374.62996738,0.00019993,2]
[419043173,1774803060439,-641.19036947,0.00019999,2]
[419043174,1774803060450,-200.0,0.0002,2]
[419043175,1774803060462,-900.0,0.0002,2]
[419043176,1774803060472,-7038.86445358,0.0002,2]
[419043177,1774803060484,-1543.77684701,0.0002,2]
[419043178,1774803060495,-177.69985612,0.0002,2]
[419043179,1774803060506,-25770.39360185,0.0002,2]
[419043180,1774803060517,-3950.0,0.0002,2]
[419043181,1774803060528,-1303.29034908,0.0002,2]
[419043182,1774803060539,-132980.89527903,0.0002,2]
[419043183,1774803060550,-1052.08814706,0.0002,2]
[419043184,1774803060561,-2883.07172884,0.0002,2]
[419043185,1774803060573,-13012.96563076,0.0002,2]
[419043186,1774803060584,-152.0,0.0002,2]
[419043187,1774803060595,-5113.14916619,0.0002,2]
[419043188,1774803060606,-280.0,0.0002,13]
[419043189,1774803060616,-150.0,0.0002,2]
[419043190,1774803060627,-150.0,0.0002,2]
[419043191,1774803060637,-534.00395352,0.0002,7]
[419043192,1774803060648,-3571.79111451,0.0002,30]
[419043193,1774803060658,-502.93933393,0.0002,10]
[419043194,1774803060670,-261.72862158,0.0002,30]
[419043195,1774803060680,-500.0,0.0002,2]
[419043196,1774803060691,-259.0,0.0002,2]
[419043197,1774803060701,-2000.0,0.0002,2]
[419043198,1774803060713,-1200.0,0.0002,14]
[419043199,1774803060723,-2654.55780984,0.0002,2]
[419043200,1774803060734,-1000.0,0.0002,2]
[419043201,1774803060745,-308.76076322,0.0002,2]
[419043202,1774803060756,-297.0783092,0.0002,2]
[419043203,1774803060766,-200.0,0.0002,10]
[419043204,1774803060777,-150.09664355,0.0002,2]
[419043205,1774803060787,-191.73,0.0002,2]
[419043206,1774803060798,-150.0,0.0002,20]
[419043207,1774803060809,-2400.0,0.0002,2]
[419043208,1774803060819,-200.0,0.0002,2]
[419043209,1774803060830,-1000.0,0.0002,7]
[419043210,1774803060840,-825.0,0.0002,30]
[419043211,1774803060851,-2000.0,0.0002001,2]
[419043212,1774803060861,-330.0,0.00020014,2]
[419043213,1774803060872,-330.0,0.00020014,2]
[419043214,1774803060883,-3091.96623,0.0002002,2]
[419043215,1774803060894,-300.0,0.000201,10]
[419043216,1774803060904,-378.274346,0.00020136,7]
[419043217,1774803060914,-150.0,0.00020144,2]
[419043218,1774803060925,-150.0,0.00020144,2]
[419043219,1774803060936,-150.0,0.00020144,2]
[419043220,1774803060947,-150.0,0.00020144,2]
[419043221,1774803060960,-150.0,0.00020144,2]
[419043222,1774803061804,-621.78829552,0.00020162,2]
[419043223,1774803061835,-251.11897888,0.00020164,2]
[419043224,1774803061845,-151.0,0.00020164,2]
[419043225,1774803061855,-182.33906909,0.00020164,2]
[419043226,1774803061865,-545.0,0.00020182,4]
[419043227,1774803061875,-200.0,0.00020273,2]
[419043228,1774803061885,-350.0,0.00020274,2]
[419043229,1774803061895,-150.0,0.00020274,2]
[419043230,1774803061904,-621.0,0.00020334,2]
[419043231,1774803061914,-3518.0,0.00020334,2]
[419043232,1774803061923,-1346.0,0.00020334,2]
[419043233,1774803061932,-1262.0,0.00020334,2]
[419043234,1774803061942,-150.0,0.00020334,2]
[419043235,1774803061952,-925.0,0.00020334,2]
[419043236,1774803061961,-3765.0,0.00020334,2]
[419043237,1774803061971,-6013.0,0.00020334,2]
[419043238,1774803061981,-1523.91,0.000204,2]
[419043239,1774803061991,-3286.49,0.000204,2]
[419043240,1774803062000,-168.82886391,0.0002041,30]
[419043241,1774803062010,-150.0,0.00020454,30]
[419043242,1774803062019,-21685.81,0.00020548,2]
[419043243,1774803062028,-161.9,0.00020548,2]
[419043244,1774803062038,-405.75,0.00020564,2]
[419043245,1774803062047,-402.63,0.00020564,2]
[419043246,1774803062057,-415.86,0.00020564,2]
[419043247,1774803062066,-376.71,0.00020564,2]
[419043248,1774803062076,-426.80194786,0.00020564,2]
[419043249,1774803062085,-420.26,0.00020564,2]
[419043250,1774803062095,-3162.0,0.00020567,2]
[419043251,1774803062105,-12649.0,0.00020654,2]
[419043252,1774803062114,-22820.47363715,0.000207,2]
[419043253,1774803062124,-182.871189,0.000207,2]
[419043254,1774803062133,-182.871189,0.000207,2]
[419043255,1774803062143,-182.871189,0.000207,2]
[419043256,1774803062152,-182.871189,0.000207,2]
[419043257,1774803062162,-151.0,0.000207,2]
[419043258,1774803062171,-151.0,0.000207,2]
[419043259,1774803062181,-154.51750164,0.00020702,2]
[419043260,1774803062191,-260.4103811,0.00020712,2]
[419043261,1774803062200,-20289.73,0.000208,2]
[419043262,1774803062210,-545.0,0.00020818,5]
[419043263,1774803062220,-200.0,0.00020821,2]
[419043264,1774803062231,-450.0,0.00020822,2]
[419043265,1774803062240,-150.0,0.00020822,2]
[419043266,1774803062250,-156.0,0.00020836,2]
[419043267,1774803062260,-177.676498,0.00020836,2]
[419043268,1774803062271,-4042.56430064,0.000209,30]
[419043269,1774803062281,-415.86,0.00020907,2]
[419043270,1774803062290,-3000.0,0.00020932,7]
[419043271,1774803062300,-1115.0,0.00020955,2]
[419043272,1774803062310,-20000.0,0.00021,2]
[419043273,1774803062320,-1201.77347026,0.00021,2]
[419043274,1774803062330,-198.3454373,0.00021,2]
[419043275,1774803062340,-753.12520292,0.00021,7]
[419043276,1774803062350,-214.2,0.00021,2]
[419043277,1774803062359,-214.2,0.00021,2]
[419043278,1774803062368,-160.0,0.00021,7]
[419043279,1774803062378,-450.0,0.00021,2]
[419043280,1774803062388,-376.71,0.00021079,2]
[419043281,1774803062397,-896.86268688,0.00021079,2]
[419043282,1774803062407,-1888.64811059,0.00021096,2]
[419043283,1774803062416,-4678.52,0.000211,7]
[419043284,1774803062426,-4789.28,0.000211,2]
[419043285,1774803062435,-4373.32,0.000211,2]
[419043286,1774803062445,-1006.6067,0.000211,2]
[419043287,1774803062455,-4873.0,0.0002114,2]
[419043288,1774803062465,-1650.0,0.00021185,2]
[419043289,1774803062475,-290.12,0.000212,30]
[419043290,1774803062484,-415.86,0.0002125,2]
[419043291,1774803062494,-270.0455652,0.0002126,2]
[419043292,1774803062504,-2345.37,0.00021341,2]
[419043293,1774803062514,-200.0,0.00021369,2]
[419043294,1774803062524,-6429.17,0.0002137,2]
[419043295,1774803062534,-550.0,0.0002137,2]
[419043296,1774803062543,-150.0,0.0002137,2]
[419043297,1774803062553,-160.91,0.00021411,30]
[419043298,1774803062564,-545.0,0.00021455,6]
[419043299,1774803062573,-250.0,0.00021468,3]
[419043300,1774803062583,-57980.52590586,0.000215,2]
[419043301,1774803062592,-223.78309925,0.000215,2]
[419043302,1774803062603,-4051.5663196,0.00021513,2]
[419043303,1774803062612,-3038.6747397,0.00021513,2]
[419043304,1774803062622,-7691.6454347,0.00021513,2]
[419043305,1774803062632,-151.0,0.00021529,2]
[419043306,1774803062642,-151.0,0.00021529,2]
[419043307,1774803062652,-151.0,0.00021529,2]
[419043308,1774803062662,-166.488897,0.00021591,2]
[419043309,1774803062671,-405.75,0.00021593,2]
[419043310,1774803062681,-415.87379425,0.00021593,2]
[419043311,1774803062691,-376.72575843,0.00021593,2]
[419043312,1774803062700,-195232.03694174,0.00021597,2]
[419043313,1774803063845,-695.34,0.00021597,2]
[419043314,1774803063856,-475.80353924,0.00021597,2]
[419043315,1774803063867,-1011.53043732,0.00021597,2]
[419043316,1774803063907,-58293.5271393,0.00021597,2]
[419043317,1774803063916,-58523.22068802,0.00021597,2]
[419043318,1774803063927,-15833.6022456,0.00021597,2]
[419043319,1774803064368,-500.0,0.00011435,2]
[419043320,1774803064401,-341.04,0.00014334,2]
[419043321,1774803064419,-73.96,0.00014334,2]
[419043322,1774803064428,-1268.24,0.00016438,2]
[419043323,1774803064971,-512.41218458,0.00016438,2]
[419043324,1774803065020,-13.21386083,0.00016438,2]
[419043325,1774803065028,-150.0,0.00016438,2]
[419043326,1774803065038,-415.0,0.00017334,2]
[419043327,1774803065046,-415.0,0.00020334,2]
[419043328,1774803065055,-15259.78613917,0.00021597,2]
[419043329,1774803065066,-427.46515504,0.00021597,2]
[419043330,1774803065077,-701.11031412,0.00021597,2]
[419043331,1774803066783,-72475.60288825,0.00021597,2]
[419043332,1774803066792,-6075.7904409,0.00021597,2]
[419043333,1774803066803,-531.05025,0.00021597,2]
[419043334,1774803282358,181.80302901,0.00010473,2]
[419043335,1774803472376,-176.44681419,0.000105,2]
[419043336,1774803472401,-219.31546059,0.000105,2]
[419043337,1774803472431,-234.69423539,0.000105,2]
[419043338,1774803472452,-181.803029,0.000105,2]
[419043339,1774803472472,-250.0,0.00010528,2]
[419043340,1774803472496,-445.63,0.00010555,2]
[419043341,1774803472518,-250.0,0.0001056,2]
[419043342,1774803472540,-1200.0,0.00010572,2]
[419043343,1774803472561,-300.0,0.00010572,2]
[419043344,1774803472581,-300.0,0.00010572,2]
[419043345,1774803472602,-300.0,0.00010572,2]
[419043346,1774803472622,-300.0,0.00010572,2]
[419043347,1774803472644,-500.0,0.00010573,2]
[419043348,1774803472666,-576.47577608,0.00010573,2]
[419043349,1774803472687,-500.0,0.00010573,2]
[419043350,1774803472708,-500.0,0.00010573,2]
[419043351,1774803472728,-561.25077082,0.00010573,2]
[419043352,1774803472747,-500.0,0.00010573,2]
[419043353,1774803472767,-500.0,0.00010573,2]
[419043354,1774803473287,-150.0,0.00010598,2]
[419043355,1774803473318,-1200.0,0.00010599,2]
[419043356,1774803473340,-500.0,0.00010599,2]
[419043357,1774803473363,-354.38391393,0.00010599,2]
[419043358,1774803474046,-104.47600559,0.00010599,2]
[419043359,1774803474075,-638.44966508,0.00010599,2]
[419043360,1774803474111,-588.54507121,0.00010599,2]
[419043361,1774803474141,-8668.52925812,0.000106,2]
[419043362,1774803474435,-10000.0,0.000106,2]
[419043363,1774803475920,-10000.0,0.000106,2]
[419043364,1774803475979,-10000.0,0.000106,2]
[419043365,1774803476057,-10000.0,0.000106,2]
[419043366,1774803478877,-10000.0,0.000106,2]
[419043367,1774803479363,-10000.0,0.000106,2]
[419043368,1774803479709,-10000.0,0.000106,2]
[419043369,1774803480035,-10000.0,0.000106,2]
[419043370,1774803480501,-10000.0,0.000106,2]
[419043371,1774803480868,-10000.0,0.000106,2]
[419043372,1774803481307,-300.0,0.00010599,2]
[419043373,1774803481332,-9700.0,0.000106,2]
[419043374,1774803481692,-10000.0,0.000106,2]
[419043375,1774803482031,-10000.0,0.000106,2]
[419043376,1774803482346,-10000.0,0.000106,2]
[419043377,1774803482907,-10000.0,0.000106,2]
[419043378,1774803483224,-10000.0,0.000106,2]
[419043379,1774803483587,-10000.0,0.000106,2]
[419043380,1774803484027,-10000.0,0.000106,2]
[419043381,1774803484359,-10000.0,0.000106,2]
[419043382,1774803484689,-10000.0,0.000106,2]
[419043383,1774803485057,-10000.0,0.000106,2]
[419043384,1774803485460,-10000.0,0.000106,2]
[419043385,1774803485789,-500.0,0.00010573,2]
[419043386,1774803485814,-9500.0,0.000106,2]
[419043387,1774803487323,-10000.0,0.000106,2]
[419043388,1774803487383,-10000.0,0.000106,2]
[419043389,1774803487422,-10000.0,0.000106,2]
[419043390,1774803487475,-10000.0,0.000106,2]
[419043391,1774803488151,-10000.0,0.000106,2]
[419043392,1774803488460,-10000.0,0.000106,2]
[419043393,1774803488978,-10000.0,0.000106,2]
[419043394,1774803490171,-500.0,0.00010573,2]
[419043395,1774803490196,-9500.0,0.000106,2]
[419043396,1774803490884,-10000.0,0.000106,2]
[419043397,1774803492354,-10000.0,0.000106,2]
[419043398,1774803493299,-10000.0,0.000106,2]
[419043399,1774803494422,-10000.0,0.000106,2]
[419043400,1774803534986,1800.0,0.00010155,2]
[419043401,1774803588298,305.94668964,0.000104,2]
[419043402,1774803594448,305.94668962,0.0001045,2]
[419043403,1774803597412,661.87,9.753e-05,2]
[419043404,1774803601207,1200.0,0.00010499,2]
[419043405,1774803601437,300.0,0.00010499,2]
[419043406,1774803602139,300.0,0.00010499,2]
[419043407,1774803603818,300.0,0.00010499,2]
[419043408,1774803603890,150.0,0.00010499,2]
[419043409,1774803691898,4676.24662074,0.00010388,2]
[419043410,1774803691923,1332.24537926,0.00010388,2]
[419043411,1774803692111,390.067,0.00010388,2]
[419043412,1774803694479,843.69,0.00010163,2]